fUST/lending_fUST_20251201
["ID","MTS","AMOUNT","RATE_DAILY","PERIOD"]
[395195049,1764533445269,-500.0,0.00013698,2]
[395195051,1764533445278,-1409.54905,0.00013698,2]
[395195053,1764533445288,-500.0,0.00013698,2]
[395195055,1764533445298,-1409.54905,0.00013698,2]
[395195057,1764533445307,-1409.54905,0.00013698,2]
[395195059,1764533445317,-500.0,0.00013698,2]
[395195062,1764533445338,-500.0,0.00013698,2]
[395195064,1764533445349,-1409.54905,0.00013698,2]
[395195066,1764533445359,-1409.54905,0.00013698,2]
[395195068,1764533445371,-1409.54905,0.00013698,2]
[395195070,1764533445380,-1409.54905,0.00013698,2]
[395195072,1764533445390,-1409.54905,0.00013698,2]
[395195074,1764533445399,-3828.02,0.00013698,2]
[395195076,1764533445409,-1409.54905,0.00013698,2]
[395195078,1764533445418,-1409.54905,0.00013698,2]
[395195080,1764533445427,-1409.54905,0.00013698,2]
[395195082,1764533445436,-1409.54905,0.00013698,2]
[395195084,1764533445445,-522.91035199,0.00013698,2]
[395195086,1764533445455,-1409.54905,0.00013698,2]
[395195088,1764533445464,-1409.54905,0.00013698,2]
[395195089,1764533445473,-1409.54905,0.00013698,2]
[395195091,1764533445483,-1409.54905,0.00013698,2]
[395195094,1764533445492,-1409.54905,0.00013698,2]
[395195096,1764533445502,-500.0,0.00013698,2]
[395195097,1764533445511,-1079.23,0.00013698,2]
[395195099,1764533445520,-1409.54905,0.00013698,2]
[395195101,1764533445530,-1409.54905,0.00013698,2]
[395195103,1764533445539,-500.0,0.00013698,2]
[395195105,1764533445550,-1409.549044,0.00013698,2]
[395195108,1764533445563,-500.0,0.00013698,2]
[395195109,1764533445572,-500.0,0.00013698,2]
[395195111,1764533445581,-1230.18,0.00013698,2]
[395195113,1764533445590,-500.0,0.00013698,2]
[395195115,1764533445600,-500.0,0.00013698,2]
[395195117,1764533445609,-500.0,0.00013698,2]
[395195120,1764533445619,-500.0,0.00013698,2]
[395195122,1764533445630,-500.0,0.00013698,2]
[395195124,1764533445639,-500.0,0.00013698,2]
[395195126,1764533445649,-500.0,0.00013698,2]
[395195128,1764533445659,-2051.63,0.00013698,2]
[395195130,1764533445669,-500.0,0.00013698,2]
[395195132,1764533445678,-504.21574561,0.00013698,2]
[395195134,1764533445688,-524.94327953,0.00013698,2]
[395195136,1764533445698,-171.15122474,0.00013698,2]
[395195138,1764533445708,-500.0,0.00013698,2]
[395195140,1764533445718,-500.0,0.00013698,2]
[395195142,1764533445729,-500.0,0.00013698,2]
[395195144,1764533445739,-500.0,0.00013698,2]
[395195146,1764533445749,-2732.14,0.00013698,2]
[395195149,1764533445759,-738.89,0.00013698,2]
[395195151,1764533445769,-501.10910932,0.00013698,2]
[395195153,1764533445779,-500.0,0.00013698,2]
[395195155,1764533445789,-500.0,0.00013698,2]
[395195157,1764533445799,-500.0,0.00013698,2]
[395195159,1764533445809,-500.0,0.00013698,2]
[395195161,1764533445820,-500.0,0.00013698,2]
[395195162,1764533445831,-500.0,0.00013698,2]
[395195163,1764533445845,-500.0,0.00013698,2]
[395195164,1764533445855,-756.87,0.00013698,2]
[395195165,1764533445866,-500.0,0.00013698,2]
[395195166,1764533445876,-952.0,0.00013698,2]
[395195167,1764533445886,-500.0,0.00013698,2]
[395195168,1764533445897,-523.85,0.00013698,2]
[395195169,1764533445908,-500.0,0.00013698,2]
[395195171,1764533445919,-3290.93,0.00013698,2]
[395195173,1764533445928,-500.0,0.00013698,2]
[395195175,1764533445938,-500.0,0.00013698,2]
[395195178,1764533445948,-500.0,0.00013698,2]
[395195180,1764533445958,-1886.65,0.00013698,2]
[395195182,1764533445968,-500.0,0.00013698,2]
[395195184,1764533445978,-240.85144736,0.00013698,2]
[395195186,1764533445988,-500.0,0.00013698,2]
[395195188,1764533445998,-500.0,0.00013698,2]
[395195190,1764533446008,-500.0,0.00013698,2]
[395195192,1764533446018,-500.0,0.00013698,2]
[395195194,1764533446029,-500.0,0.00013698,2]
[395195196,1764533446039,-1854.99,0.00013698,2]
[395195198,1764533446049,-500.0,0.00013698,2]
[395195201,1764533446059,-1595.89,0.00013698,2]
[395195203,1764533446069,-500.0,0.00013698,2]
[395195205,1764533446079,-500.0,0.00013698,2]
[395195207,1764533446089,-1007.35,0.00013698,2]
[395195210,1764533446099,-500.0,0.00013698,2]
[395195212,1764533446111,-500.0,0.00013698,2]
[395195214,1764533446121,-5839.75,0.00013698,2]
[395195216,1764533446132,-500.0,0.00013698,2]
[395195218,1764533446141,-500.0,0.00013698,2]
[395195220,1764533446151,-500.0,0.00013698,2]
[395195222,1764533446162,-500.0,0.00013698,2]
[395195225,1764533446175,-500.0,0.00013698,2]
[395195227,1764533446185,-743.69,0.00013698,2]
[395195229,1764533446196,-3539.56,0.00013698,2]
[395195231,1764533446206,-500.0,0.00013698,2]
[395195233,1764533446216,-646.32,0.00013698,2]
[395195236,1764533446226,-500.0,0.00013698,2]
[395195238,1764533446236,-500.0,0.00013698,2]
[395195240,1764533446249,-500.0,0.00013698,2]
[395195242,1764533446259,-879.06,0.00013698,2]
[395195244,1764533446269,-500.0,0.00013698,2]
[395195246,1764533446278,-622.41,0.00013698,2]
[395195248,1764533446288,-2108.16,0.00013698,2]
[395195250,1764533446299,-152.54419072,0.00013698,2]
[395195252,1764533446309,-500.0,0.00013698,2]
[395195255,1764533446319,-500.0,0.00013698,2]
[395195257,1764533446329,-273.63445821,0.00013698,2]
[395195259,1764533446340,-276.541223,0.00013698,2]
[395195261,1764533446350,-151.0,0.00013698,2]
[395195263,1764533446360,-276.541223,0.00013698,2]
[395195265,1764533446370,-276.541223,0.00013698,2]
[395195267,1764533446380,-276.541223,0.00013698,2]
[395195269,1764533446390,-500.0,0.00013698,2]
[395195271,1764533446400,-276.541223,0.00013698,2]
[395195274,1764533446410,-276.541223,0.00013698,2]
[395195276,1764533446420,-276.541223,0.00013698,2]
[395195278,1764533446430,-501.27436962,0.00013698,2]
[395195280,1764533446440,-276.541223,0.00013698,2]
[395195282,1764533446450,-276.541223,0.00013698,2]
[395195284,1764533446459,-276.541223,0.00013698,2]
[395195286,1764533446469,-911.78,0.00013698,2]
[395195288,1764533446479,-276.541223,0.00013698,2]
[395195290,1764533446488,-500.0,0.00013698,2]
[395195291,1764533446498,-1335.95,0.00013698,2]
[395195292,1764533446508,-276.541223,0.00013698,2]
[395195293,1764533446519,-331.88851665,0.00013698,2]
[395195294,1764533446529,-500.0,0.00013698,2]
[395195295,1764533446538,-276.541223,0.00013698,2]
[395195296,1764533446548,-276.541223,0.00013698,2]
[395195297,1764533446558,-276.541223,0.00013698,2]
[395195298,1764533446567,-276.541225,0.00013698,2]
[395195299,1764533446577,-500.0,0.00013698,2]
[395195300,1764533446587,-500.0,0.00013698,2]
[395195301,1764533446596,-1544.95,0.00013698,2]
[395195302,1764533446606,-517.740014,0.00013698,2]
[395195303,1764533446615,-500.0,0.00013698,2]
[395195304,1764533446625,-5311.48,0.00013698,2]
[395195305,1764533446635,-469.94568611,0.00013698,2]
[395195306,1764533446644,-500.0,0.00013698,2]
[395195307,1764533446654,-477.29588568,0.00013698,2]
[395195308,1764533446663,-500.0,0.00013698,2]
[395195309,1764533446673,-368.409851,0.00013698,2]
[395195310,1764533446683,-368.409851,0.00013698,2]
[395195311,1764533446692,-2523.97,0.00013698,2]
[395195312,1764533446701,-368.409851,0.00013698,2]
[395195313,1764533446711,-1126.81,0.00013698,2]
[395195314,1764533446720,-368.409851,0.00013698,2]
[395195315,1764533446730,-500.0,0.00013698,2]
[395195316,1764533446739,-368.409851,0.00013698,2]
[395195317,1764533446748,-368.409851,0.00013698,2]
[395195318,1764533446758,-368.409851,0.00013698,2]
[395195319,1764533446768,-368.409851,0.00013698,2]
[395195320,1764533446777,-500.0,0.00013698,2]
[395195321,1764533446787,-368.409851,0.00013698,2]
[395195322,1764533446796,-368.409851,0.00013698,2]
[395195323,1764533446807,-368.409851,0.00013698,2]
[395195324,1764533446816,-368.409851,0.00013698,2]
[395195325,1764533446826,-500.0,0.00013698,2]
[395195326,1764533446836,-1613.79,0.00013698,2]
[395195327,1764533446845,-368.409851,0.00013698,2]
[395195328,1764533446855,-501.55660433,0.00013698,2]
[395195329,1764533446864,-368.409851,0.00013698,2]
[395195330,1764533446874,-500.0,0.00013698,2]
[395195331,1764533446883,-500.0,0.00013698,2]
[395195332,1764533446892,-368.409851,0.00013698,2]
[395195333,1764533446901,-500.0,0.00013698,2]
[395195334,1764533446911,-368.40984848,0.00013698,2]
[395195335,1764533446920,-504.08966963,0.00013698,2]
[395195336,1764533446930,-2454.99,0.00013698,2]
[395195337,1764533446939,-500.0,0.00013698,2]
[395195338,1764533446948,-500.0,0.00013698,2]
[395195339,1764533446957,-500.0,0.00013698,2]
[395195340,1764533446967,-2253.12,0.00013698,2]
[395195341,1764533446976,-500.0,0.00013698,2]
[395195342,1764533446985,-500.0,0.00013698,2]
[395195343,1764533446995,-658.02,0.00013698,2]
[395195344,1764533447004,-500.0,0.00013698,2]
[395195345,1764533447013,-500.0,0.00013698,2]
[395195346,1764533447023,-3431.67,0.00013698,2]
[395195347,1764533447032,-500.0,0.00013698,2]
[395195348,1764533447041,-500.0,0.00013698,2]
[395195349,1764533447051,-500.0,0.00013698,2]
[395195350,1764533447060,-2459.24,0.00013698,2]
[395195351,1764533447069,-504.06904584,0.00013698,2]
[395195352,1764533447078,-500.0,0.00013698,2]
[395195353,1764533447088,-500.0,0.00013698,2]
[395195354,1764533447097,-1051.75,0.00013698,2]
[395195355,1764533447107,-500.0,0.00013698,2]
[395195356,1764533447117,-2942.23,0.00013698,2]
[395195357,1764533447126,-455.23398115,0.00013698,2]
[395195358,1764533447136,-500.0,0.00013698,2]
[395195359,1764533447145,-766.59,0.00013698,2]
[395195360,1764533447154,-2187.23,0.00013698,2]
[395195361,1764533447164,-1237.42,0.00013698,2]
[395195362,1764533447181,-500.0,0.00013698,2]
[395195363,1764533447194,-500.0,0.00013698,2]
[395195364,1764533447207,-500.0,0.00013698,2]
[395195365,1764533447396,-736.04,0.00013698,2]
[395195367,1764533447405,-151.0,0.00013698,2]
[395195369,1764533447414,-151.0,0.00013698,2]
[395195371,1764533447423,-151.0,0.00013698,2]
[395195373,1764533447432,-1374.03,0.00013698,2]
[395195374,1764533447441,-500.0,0.00013698,2]
[395195376,1764533447450,-687.72,0.00013698,2]
[395195378,1764533447459,-500.0,0.00013698,2]
[395195379,1764533447468,-500.0,0.00013698,2]
[395195380,1764533447478,-504.87,0.00013698,2]
[395195381,1764533447487,-500.96320801,0.00013698,2]
[395195382,1764533447495,-296.24648813,0.00013698,2]
[395195384,1764533447505,-2405.05,0.00013698,2]
[395195386,1764533447514,-2662.2,0.00013698,2]
[395195388,1764533447523,-500.0,0.00013698,2]
[395195389,1764533447532,-501.93422736,0.00013698,2]
[395195391,1764533447541,-295.50308837,0.00013698,2]
[395195393,1764533447551,-500.0,0.00013698,2]
[395195395,1764533447559,-500.0,0.00013698,2]
[395195397,1764533447569,-500.0,0.00013698,2]
[395195399,1764533447578,-1620.61,0.00013698,2]
[395195401,1764533447587,-500.0,0.00013698,2]
[395195402,1764533447596,-500.0,0.00013698,2]
[395195404,1764533447606,-500.0,0.00013698,2]
[395195406,1764533447615,-503.40630707,0.00013698,2]
[395195408,1764533447625,-2692.41,0.00013698,2]
[395195410,1764533447635,-500.0,0.00013698,2]
[395195411,1764533447645,-500.0,0.00013698,2]
[395195413,1764533447654,-8189.85,0.00013698,2]
[395195414,1764533447663,-500.0,0.00013698,2]
[395195415,1764533447672,-151.0,0.00013698,2]
[395195416,1764533447681,-151.0,0.00013698,2]
[395195417,1764533447690,-500.0,0.00013698,2]
[395195418,1764533447700,-151.0,0.00013698,2]
[395195419,1764533447709,-228.804703,0.00013698,2]
[395195420,1764533447718,-546.52011459,0.00013698,2]
[395195422,1764533447728,-500.0,0.00013698,2]
[395195424,1764533447737,-737.51,0.00013698,2]
[395195426,1764533447746,-500.0,0.00013698,2]
[395195427,1764533447755,-500.0,0.00013698,2]
[395195428,1764533447764,-500.0,0.00013698,2]
[395195429,1764533447773,-500.0,0.00013698,2]
[395195430,1764533447783,-500.0,0.00013698,2]
[395195431,1764533447795,-500.0,0.00013698,2]
[395195432,1764533447805,-21576.49,0.00013698,2]
[395195433,1764533447814,-1940.07,0.00013698,2]
[395195434,1764533447824,-500.0,0.00013698,2]
[395195435,1764533447833,-500.0,0.00013698,2]
[395195436,1764533447845,-510.13,0.00013698,2]
[395195437,1764533447855,-500.0,0.00013698,2]
[395195438,1764533447864,-5776.27,0.00013698,2]
[395195439,1764533447874,-500.0,0.00013698,2]
[395195441,1764533447883,-507.13997638,0.00013698,2]
[395195443,1764533447892,-500.0,0.00013698,2]
[395195445,1764533447901,-1041.48,0.00013698,2]
[395195447,1764533447911,-500.0,0.00013698,2]
[395195449,1764533447920,-500.0,0.00013698,2]
[395195450,1764533447929,-1477.61,0.00013698,2]
[395195452,1764533447938,-500.0,0.00013698,2]
[395195453,1764533447948,-526.62284416,0.00013698,2]
[395195455,1764533447958,-500.0,0.00013698,2]
[395195457,1764533447967,-500.0,0.00013698,2]
[395195459,1764533447977,-2718.8,0.00013698,2]
[395195460,1764533447989,-500.0,0.00013698,2]
[395195461,1764533447998,-500.0,0.00013698,2]
[395195462,1764533448008,-398.31149314,0.00013698,2]
[395195463,1764533448018,-500.0,0.00013698,2]
[395195464,1764533448027,-500.0,0.00013698,2]
[395195465,1764533448035,-500.0,0.00013698,2]
[395195466,1764533448045,-500.0,0.00013698,2]
[395195467,1764533448055,-500.0,0.00013698,2]
[395195468,1764533448064,-500.0,0.00013698,2]
[395195469,1764533448074,-500.0,0.00013698,2]
[395195470,1764533448084,-500.0,0.00013698,2]
[395195471,1764533448094,-712.12,0.00013698,2]
[395195472,1764533448104,-2134.87,0.00013698,2]
[395195473,1764533448114,-530.16041765,0.00013698,2]
[395195474,1764533448123,-500.0,0.00013698,2]
[395195475,1764533448133,-500.0,0.00013698,2]
[395195476,1764533448143,-500.0,0.00013698,2]
[395195477,1764533448152,-500.0,0.00013698,2]
[395195478,1764533448161,-500.0,0.00013698,2]
[395195479,1764533448171,-500.0,0.00013698,2]
[395195480,1764533448180,-540.19769117,0.00013698,2]
[395195481,1764533448189,-719.1,0.00013698,2]
[395195482,1764533448198,-500.0,0.00013698,2]
[395195483,1764533448207,-500.0,0.00013698,2]
[395195484,1764533448216,-1619.71,0.00013698,2]
[395195485,1764533448225,-500.0,0.00013698,2]
[395195486,1764533448234,-500.0,0.00013698,2]
[395195487,1764533448247,-500.0,0.00013698,2]
[395195488,1764533448258,-2896.47,0.00013698,2]
[395195489,1764533448267,-500.0,0.00013698,2]
[395195490,1764533448277,-500.0,0.00013698,2]
[395195491,1764533448286,-500.0,0.00013698,2]
[395195492,1764533448295,-500.0,0.00013698,2]
[395195493,1764533448304,-2295.14,0.00013698,2]
[395195494,1764533448314,-501.19680907,0.00013698,2]
[395195495,1764533448323,-151.0,0.00013698,2]
[395195496,1764533448332,-947.51,0.00013698,2]
[395195497,1764533448341,-500.0,0.00013698,2]
[395195498,1764533448351,-168.703231,0.00013698,2]
[395195499,1764533448360,-168.703231,0.00013698,2]
[395195500,1764533448369,-168.703231,0.00013698,2]
[395195501,1764533448378,-5511.71,0.00013698,2]
[395195502,1764533448388,-168.703231,0.00013698,2]
[395195503,1764533448398,-168.703231,0.00013698,2]
[395195504,1764533448407,-168.703231,0.00013698,2]
[395195505,1764533448416,-168.703231,0.00013698,2]
[395195506,1764533448425,-12300.53,0.00013698,2]
[395195507,1764533448434,-168.703231,0.00013698,2]
[395195508,1764533448444,-151.0,0.00013698,2]
[395195509,1764533448456,-151.0,0.00013698,2]
[395195510,1764533448466,-500.0,0.00013698,2]
[395195511,1764533448476,-168.703231,0.00013698,2]
[395195512,1764533448485,-151.0,0.00013698,2]
[395195513,1764533448495,-168.703231,0.00013698,2]
[395195514,1764533448505,-151.0,0.00013698,2]
[395195515,1764533448515,-168.703231,0.00013698,2]
[395195516,1764533448524,-2033.22,0.00013698,2]
[395195517,1764533448533,-168.703231,0.00013698,2]
[395195518,1764533448543,-151.0,0.00013698,2]
[395195519,1764533448552,-151.0,0.00013698,2]
[395195520,1764533448562,-168.703231,0.00013698,2]
[395195521,1764533448572,-151.0,0.00013698,2]
[395195522,1764533448581,-502.73850431,0.00013698,2]
[395195523,1764533448591,-168.703231,0.00013698,2]
[395195524,1764533448600,-500.33820009,0.00013698,2]
[395195525,1764533448610,-151.0,0.00013698,2]
[395195526,1764533448619,-168.703231,0.00013698,2]
[395195527,1764533448629,-168.703226,0.00013698,2]
[395195528,1764533448638,-500.0,0.00013698,2]
[395195529,1764533448648,-151.0,0.00013698,2]
[395195530,1764533448657,-151.0,0.00013698,2]
[395195531,1764533448667,-151.0,0.00013698,2]
[395195532,1764533448676,-151.0,0.00013698,2]
[395195533,1764533448686,-500.0,0.00013698,2]
[395195534,1764533448695,-151.0,0.00013698,2]
[395195535,1764533448705,-151.0,0.00013698,2]
[395195536,1764533448714,-473.158891,0.00013698,2]
[395195537,1764533448723,-202.002652,0.00013698,2]
[395195538,1764533448733,-2460.8,0.00013698,2]
[395195539,1764533448742,-473.158891,0.00013698,2]
[395195540,1764533448752,-1000.0,0.00013699,2]
[395195541,1764533448761,-995.879989,0.00013699,2]
[395195542,1764533448771,-1500.0,0.00013699,2]
[395195543,1764533448780,-151.0,0.00013699,2]
[395195544,1764533448790,-151.0,0.00013699,2]
[395195545,1764533448799,-151.0,0.00013699,2]
[395195546,1764533448808,-151.0,0.00013699,2]
[395195547,1764533448818,-151.0,0.00013699,2]
[395195548,1764533448826,-151.0,0.00013699,2]
[395195549,1764533448836,-151.0,0.00013699,2]
[395195550,1764533448845,-151.0,0.00013699,2]
[395195551,1764533448855,-151.0,0.00013699,2]
[395195552,1764533448864,-151.0,0.00013699,2]
[395195553,1764533448874,-204.47887,0.00013699,2]
[395195554,1764533448883,-500.0,0.00013699,2]
[395195555,1764533448892,-500.0,0.00013699,2]
[395195556,1764533448901,-500.0,0.00013699,2]
[395195557,1764533448911,-500.0,0.00013699,2]
[395195558,1764533448921,-563.62287207,0.00013699,2]
[395195559,1764533448931,-500.0,0.00013699,2]
[395195560,1764533448940,-500.0,0.00013699,2]
[395195561,1764533448949,-500.0,0.00013699,2]
[395195562,1764533448959,-500.0,0.00013699,2]
[395195563,1764533448968,-500.0,0.00013699,2]
[395195564,1764533448978,-500.0,0.00013699,2]
[395195565,1764533448987,-500.34102071,0.00013699,2]
[395195566,1764533448997,-500.0,0.00013699,2]
[395195567,1764533449006,-500.0,0.00013699,2]
[395195568,1764533449015,-500.0,0.00013699,2]
[395195569,1764533449025,-500.0,0.00013699,2]
[395195570,1764533449034,-500.0,0.00013699,2]
[395195571,1764533449044,-500.0,0.00013699,2]
[395195572,1764533449053,-500.0,0.00013699,2]
[395195573,1764533449063,-500.0,0.00013699,2]
[395195574,1764533449072,-500.0,0.00013699,2]
[395195575,1764533449082,-500.0,0.00013699,2]
[395195576,1764533449091,-201.13840437,0.00013699,2]
[395195577,1764533449101,-500.0,0.00013699,2]
[395195578,1764533449113,-500.0,0.00013699,2]
[395195579,1764533449123,-500.0,0.00013699,2]
[395195580,1764533449132,-500.0,0.00013699,2]
[395195581,1764533449142,-500.0,0.00013699,2]
[395195582,1764533449151,-322.42118481,0.00013699,2]
[395195583,1764533449160,-500.0,0.00013699,2]
[395195584,1764533449171,-2000.0,0.00013699,7]
[395195585,1764533449180,-500.0,0.00013699,2]
[395195586,1764533449190,-500.0,0.00013699,2]
[395195587,1764533449200,-429.85492377,0.00013699,2]
[395195588,1764533449209,-500.0,0.00013699,2]
[395195589,1764533449219,-500.0,0.00013699,2]
[395195590,1764533449228,-500.0,0.00013699,2]
[395195591,1764533449238,-500.0,0.00013699,2]
[395195592,1764533449251,-500.0,0.00013699,2]
[395195593,1764533449260,-500.0,0.00013699,2]
[395195594,1764533449270,-500.0,0.00013699,2]
[395195595,1764533449279,-500.0,0.00013699,2]
[395195596,1764533449290,-500.0,0.00013699,2]
[395195597,1764533449299,-500.0,0.00013699,2]
[395195598,1764533449308,-500.0,0.00013699,2]
[395195599,1764533449318,-500.0,0.00013699,2]
[395195600,1764533449328,-502.15001846,0.00013699,2]
[395195601,1764533449339,-500.0,0.00013699,2]
[395195602,1764533449348,-500.15660141,0.00013699,2]
[395195603,1764533449357,-500.92922304,0.00013699,2]
[395195604,1764533449367,-500.0,0.00013699,2]
[395195605,1764533449376,-501.51242907,0.00013699,2]
[395195606,1764533449386,-500.0,0.00013699,2]
[395195607,1764533449395,-522.48062145,0.00013699,2]
[395195608,1764533449404,-500.80784564,0.00013699,2]
[395195609,1764533449414,-500.0,0.00013699,2]
[395195610,1764533449423,-500.0,0.00013699,2]
[395195611,1764533449432,-500.0,0.00013699,2]
[395195612,1764533449441,-500.0,0.00013699,2]
[395195613,1764533449451,-500.92100063,0.00013699,2]
[395195614,1764533449460,-290.0,0.00013699,2]
[395195615,1764533449470,-581.96192,0.00013699,2]
[395195616,1764533449479,-500.67187701,0.00013699,2]
[395195617,1764533449488,-500.0,0.00013699,2]
[395195618,1764533449498,-500.0,0.00013699,2]
[395195619,1764533449507,-214.76830164,0.00013699,2]
[395195620,1764533449516,-500.0,0.00013699,2]
[395195621,1764533449526,-500.0,0.00013699,2]
[395195622,1764533449535,-242.0,0.00013703,2]
[395195623,1764533449544,-2000.0,0.00013707,3]
[395195624,1764533449554,-2000.0,0.00013715,3]
[395195625,1764533449563,-1535.0,0.00013722,2]
[395195626,1764533449572,-2000.0,0.00013724,3]
[395195627,1764533449582,-2000.0,0.00013733,3]
[395195628,1764533449591,-2000.0,0.00013742,3]
[395195629,1764533449600,-2000.0,0.00013751,3]
[395195630,1764533449610,-1535.0,0.00013755,2]
[395195631,1764533449619,-242.0,0.00013758,2]
[395195632,1764533449628,-2000.0,0.00013759,3]
[395195633,1764533449637,-4595.0,0.00013763,2]
[395195634,1764533449647,-242.0,0.00013763,2]
[395195635,1764533449656,-2000.0,0.00013768,3]
[395195636,1764533449665,-2000.0,0.00013774,3]
[395195637,1764533449674,-2000.0,0.00013777,3]
[395195638,1764533449683,-2000.0,0.00013783,3]
[395195639,1764533449693,-2000.0,0.00013784,3]
[395195640,1764533449702,-2000.0,0.00013786,3]
[395195641,1764533449711,-1535.0,0.0001379,2]
[395195642,1764533449721,-2000.0,0.00013791,3]
[395195643,1764533449730,-2000.0,0.00013792,3]
[395195644,1764533449739,-2000.0,0.00013795,3]
[395195645,1764533449748,-2000.0,0.000138,3]
[395195646,1764533449758,-2000.0,0.00013801,3]
[395195647,1764533449767,-2000.0,0.00013803,3]
[395195648,1764533449777,-2000.0,0.00013809,3]
[395195649,1764533449914,-2000.0,0.0001381,3]
[395195650,1764533449924,-2000.0,0.00013812,3]
[395195651,1764533449933,-242.0,0.00013813,2]
[395195652,1764533449942,-2000.0,0.00013818,3]
[395195653,1764533449951,-2000.0,0.00013819,3]
[395195654,1764533449960,-1000.0,0.00013821,2]
[395195655,1764533449969,-1000.0,0.00013821,2]
[395195656,1764533449979,-534.3551772,0.00013821,2]
[395195657,1764533449988,-1000.0,0.00013821,2]
[395195658,1764533449997,-1000.0,0.00013821,2]
[395195659,1764533450007,-692.09407938,0.00013821,2]
[395195660,1764533450017,-463.14999191,0.00013821,2]
[395195661,1764533450026,-1000.0,0.00013821,2]
[395195662,1764533450036,-1000.0,0.00013821,2]
[395195663,1764533450045,-1000.0,0.00013821,2]
[395195664,1764533450055,-1000.0,0.00013821,2]
[395195665,1764533450064,-1000.0,0.00013821,2]
[395195666,1764533450074,-1000.0,0.00013821,2]
[395195667,1764533450083,-1000.0,0.00013821,2]
[395195668,1764533450092,-1000.0,0.00013821,2]
[395195669,1764533450102,-1000.0,0.00013821,2]
[395195670,1764533450111,-1147.60398022,0.00013821,2]
[395195671,1764533450121,-2000.0,0.00013821,3]
[395195672,1764533450130,-2000.0,0.00013822,3]
[395195673,1764533450140,-4595.0,0.00013826,2]
[395195674,1764533450150,-2000.0,0.00013827,3]
[395195675,1764533450159,-2000.0,0.00013828,3]
[395195676,1764533450169,-2000.0,0.00013831,3]
[395195677,1764533450179,-2000.0,0.00013835,3]
[395195678,1764533450189,-2000.0,0.00013836,3]
[395195679,1764533450198,-2000.0,0.0001384,3]
[395195680,1764533450207,-2000.0,0.00013844,3]
[395195681,1764533450217,-2000.0,0.00013845,3]
[395195682,1764533450226,-2000.0,0.00013849,3]
[395195683,1764533450235,-2000.0,0.00013853,3]
[395195684,1764533450245,-2000.0,0.00013854,3]
[395195685,1764533450257,-2000.0,0.00013858,3]
[395195686,1764533450266,-242.0,0.00013859,2]
[395195687,1764533450275,-4595.0,0.00013861,2]
[395195688,1764533450284,-2000.0,0.00013862,3]
[395195689,1764533450293,-2000.0,0.00013863,3]
[395195690,1764533450302,-2000.0,0.00013866,3]
[395195691,1764533450312,-2000.0,0.00013871,3]
[395195692,1764533450321,-2000.0,0.00013872,3]
[395195693,1764533450331,-2000.0,0.00013875,3]
[395195694,1764533450340,-2000.0,0.00013879,3]
[395195695,1764533450349,-2000.0,0.0001388,3]
[395195696,1764533450358,-500.0,0.00013884,2]
[395195697,1764533450367,-2000.0,0.00013884,3]
[395195698,1764533450376,-2000.0,0.00013888,3]
[395195699,1764533450385,-2000.0,0.00013889,3]
[395195700,1764533450395,-2000.0,0.00013893,3]
[395195701,1764533450403,-2000.0,0.00013897,3]